fUSD/lending_fUSD_20260613
["ID","MTS","AMOUNT","RATE_DAILY","PERIOD"]
[424942966,1781311833000,-153.028596,0.00011298,2]
[424942968,1781311833000,-151.0,0.00011298,2]
[424942969,1781311833000,-151.0,0.00011298,2]
[424942967,1781311833000,-151.0,0.00011298,2]
[424942971,1781311833000,-500.0,0.00011348,2]
[424942974,1781311833000,-150.0,0.00011348,2]
[424942972,1781311833000,-150.0,0.00011348,2]
[424942973,1781311833000,-500.0,0.00011348,2]
[424942975,1781311833000,-500.0,0.00011348,2]
[424942976,1781311833000,-500.0,0.00011348,2]
[424942978,1781311833000,-179.0070577,0.00011348,2]
[424942977,1781311833000,-500.0,0.00011348,2]
[424942981,1781311833000,-500.0,0.00011348,2]
[424942980,1781311833000,-500.0,0.00011348,2]
[424942979,1781311833000,-500.0,0.00011348,2]
[424942986,1781311833000,-500.0,0.00011348,2]
[424942983,1781311833000,-587.17037937,0.00011348,2]
[424942984,1781311833000,-500.0,0.00011348,2]
[424942985,1781311833000,-500.0,0.00011348,2]
[424942982,1781311833000,-500.0,0.00011348,2]
[424942987,1781311833000,-500.0,0.00011348,2]
[424942934,1781311833000,-500.0,0.00011281,2]
[424942965,1781311833000,-299.99,0.00011281,2]
[424942961,1781311833000,-369.03,0.00011281,2]
[424942970,1781311833000,-2000.0,0.00011301,2]
[424942963,1781311833000,-5187.45,0.00011281,2]
[424942937,1781311833000,-500.0,0.00011281,2]
[424942942,1781311833000,-500.0,0.00011281,2]
[424942938,1781311833000,-500.0,0.00011281,2]
[424942941,1781311833000,-500.0,0.00011281,2]
[424942940,1781311833000,-500.0,0.00011281,2]
[424942960,1781311833000,-999.99,0.00011281,2]
[424942943,1781311833000,-500.0,0.00011281,2]
[424942945,1781311833000,-500.0,0.00011281,2]
[424942947,1781311833000,-500.0,0.00011281,2]
[424942946,1781311833000,-500.0,0.00011281,2]
[424942948,1781311833000,-500.0,0.00011281,2]
[424942949,1781311833000,-500.0,0.00011281,2]
[424942939,1781311833000,-500.0,0.00011281,2]
[424942952,1781311833000,-500.0,0.00011281,2]
[424942950,1781311833000,-500.0,0.00011281,2]
[424942959,1781311833000,-23708.84,0.00011281,2]
[424942958,1781311833000,-391.926367,0.00011281,2]
[424942957,1781311833000,-500.0,0.00011281,2]
[424942955,1781311833000,-500.0,0.00011281,2]
[424942962,1781311833000,-9999.99,0.00011281,2]
[424942956,1781311833000,-500.0,0.00011281,2]
[424942954,1781311833000,-500.0,0.00011281,2]
[424942953,1781311833000,-500.0,0.00011281,2]
[424942951,1781311833000,-500.0,0.00011281,2]
[424942992,1781311834000,-200.0,0.00011348,2]
[424942999,1781311834000,-500.0,0.00011622,2]
[424942995,1781311834000,-217.71,0.00011524,2]
[424942993,1781311834000,-3205.58,0.00011507,2]
[424943001,1781311834000,-500.0,0.00011622,2]
[424942996,1781311834000,-2430.63186634,0.00011604,2]
[424942990,1781311834000,-150.0,0.00011348,2]
[424942997,1781311834000,-151.0,0.00011622,2]
[424942994,1781311834000,-360.0,0.00011524,5]
[424942991,1781311834000,-150.0,0.00011348,2]
[424942989,1781311834000,-150.0,0.00011348,2]
[424942988,1781311834000,-314.52757778,0.00011348,2]
[424943000,1781311834000,-504.63623623,0.00011622,2]
[424942998,1781311834000,-151.0,0.00011622,2]
[424943002,1781311834000,-500.0,0.00011622,2]
[424943011,1781311834000,-221.09,0.00011701,2]
[424943007,1781311834000,-500.0,0.00011622,2]
[424943018,1781311834000,-166.66,0.00011178,2]
[424943019,1781311834000,-379.616,0.00011882,2]
[424943017,1781311834000,-2687.13299995,0.00011882,2]
[424943012,1781311834000,-3305.88721663,0.00011707,2]
[424943014,1781311834000,-250.0,0.00011869,2]
[424943016,1781311834000,-500.0,0.00011881,2]
[424943013,1781311834000,-2000.0,0.00011869,2]
[424943015,1781311834000,-885.58,0.00011869,2]
[424943010,1781311834000,-544.56840726,0.00011622,2]
[424943009,1781311834000,-500.0,0.00011622,2]
[424943008,1781311834000,-500.0,0.00011622,2]
[424943003,1781311834000,-500.0,0.00011622,2]
[424943006,1781311834000,-500.0,0.00011622,2]
[424943004,1781311834000,-500.0,0.00011622,2]
[424943005,1781311834000,-500.0,0.00011622,2]
[424943022,1781311839000,-166.66,0.00011288,2]
[424943024,1781311839000,-166.66,0.00011507,2]
[424943028,1781311839000,-18208.23130089,0.00011882,2]
[424943026,1781311839000,-5585.16177631,0.00011882,2]
[424943023,1781311839000,-166.66,0.00011397,2]
[424943027,1781311839000,-31812.10859314,0.00011882,2]
[424943025,1781311839000,-3402.6242263,0.00011882,2]
[424943094,1781311840000,-743.52,0.00012252,2]
[424943115,1781311840000,-151.0,0.00012418,2]
[424943104,1781311840000,-3305.88721663,0.00012345,2]
[424943120,1781311840000,-278.0,0.00012418,2]
[424943088,1781311840000,-743.52,0.00012146,2]
[424943081,1781311840000,-2470.3105406,0.00012,2]
[424943083,1781311840000,-165.23,0.00012041,2]
[424943101,1781311840000,-743.52,0.00012333,2]
[424943086,1781311840000,-743.52,0.00012071,2]
[424943097,1781311840000,-743.52,0.00012294,2]
[424943090,1781311840000,-45926.0,0.000122,2]
[424943099,1781311840000,-2000.0,0.00012329,2]
[424943092,1781311840000,-743.52,0.00012203,2]
[424943059,1781311840000,-113590.9269,0.00011882,2]
[424943072,1781311840000,-760.430438,0.00011882,2]
[424943070,1781311840000,-760.430438,0.00011882,2]
[424943076,1781311840000,-760.430438,0.00011882,2]
[424943068,1781311840000,-760.430438,0.00011882,2]
[424943065,1781311840000,-760.430438,0.00011882,2]
[424943061,1781311840000,-760.430438,0.00011882,2]
[424943074,1781311840000,-760.430438,0.00011882,2]
[424943057,1781311840000,-83952.65789404,0.00011882,2]
[424943055,1781311840000,-27651.46641155,0.00011882,2]
[424943063,1781311840000,-760.430438,0.00011882,2]
[424943048,1781311840000,-10260.63265557,0.00011882,2]
[424943046,1781311840000,-150.0,0.00011109,2]
[424943122,1781311840000,-220.0,0.00012418,2]
[424943078,1781311840000,-743.52,0.0001189,2]
[424943106,1781311840000,-743.52,0.00012368,2]
[424943149,1781311840000,-2430.63186634,0.00012428,2]
[424943113,1781311840000,-151.0,0.00012418,2]
[424943118,1781311840000,-151.0,0.00012418,2]
[424943166,1781311840000,-743.52,0.0001259,2]
[424943165,1781311840000,-743.52,0.00012566,2]
[424943162,1781311840000,-1002.615,0.00012534,2]
[424943163,1781311840000,-419.0,0.00012534,2]
[424943155,1781311840000,-743.52,0.00012516,2]
[424943159,1781311840000,-151.0,0.00012533,2]
[424943153,1781311840000,-743.52,0.00012489,2]
[424943151,1781311840000,-743.52,0.00012462,2]
[424943154,1781311840000,-5530.0,0.000125,3]
[424943152,1781311840000,-199.5,0.00012467,2]
[424943157,1781311840000,-500.0,0.00012532,2]
[424943161,1781311840000,-3556.0,0.00012534,2]
[424943164,1781311840000,-743.52,0.00012542,2]
[424943147,1781311840000,-189.0,0.00012418,2]
[424943150,1781311840000,-743.52,0.00012432,2]
[424943109,1781311840000,-743.52,0.00012401,2]
[424943125,1781311840000,-232.981,0.00012418,2]
[424943129,1781311840000,-248.119,0.00012418,2]
[424943127,1781311840000,-242.103,0.00012418,2]
[424943140,1781311840000,-167.555,0.00012418,2]
[424943111,1781311840000,-162.58,0.00012414,2]
[424943131,1781311840000,-250.0,0.00012418,2]
[424943136,1781311840000,-220.283,0.00012418,2]
[424943138,1781311840000,-195.348,0.00012418,2]
[424943145,1781311840000,-247.772,0.00012418,2]
[424943143,1781311840000,-250.0,0.00012418,2]
[424943134,1781311840000,-167.685,0.00012418,2]
[424943207,1781311841000,-743.52,0.00013061,2]
[424943204,1781311841000,-743.52,0.00013033,2]
[424943206,1781311841000,-150.0,0.00013051,5]
[424943198,1781311841000,-3305.88721663,0.00012984,2]
[424943202,1781311841000,-743.52,0.00013004,2]
[424943203,1781311841000,-743.52,0.00013018,2]
[424943200,1781311841000,-15291.34377432,0.00013,5]
[424943201,1781311841000,-301.52,0.00013,2]
[424943208,1781311841000,-743.52,0.00013075,2]
[424943205,1781311841000,-743.52,0.00013047,2]
[424943199,1781311841000,-743.52,0.00012989,2]
[424943213,1781311841000,-743.52,0.00013129,2]
[424943210,1781311841000,-743.52,0.00013102,2]
[424943211,1781311841000,-831.2865767,0.00013103,2]
[424943215,1781311841000,-500.0,0.00013143,11]
[424943214,1781311841000,-743.52,0.00013142,2]
[424943217,1781311841000,-151.0,0.00013144,2]
[424943212,1781311841000,-743.52,0.00013116,2]
[424943216,1781311841000,-151.0,0.00013144,2]
[424943219,1781311841000,-2430.63186634,0.00013252,2]
[424943218,1781311841000,-282.135329,0.00013144,2]
[424943220,1781311841000,-1500.0,0.00013302,2]
[424943197,1781311841000,-743.52,0.00012974,2]
[424943222,1781311841000,-150.0,0.00013488,2]
[424943209,1781311841000,-743.52,0.00013089,2]
[424943196,1781311841000,-151.0,0.00012964,2]
[424943174,1781311841000,-743.52,0.00012757,2]
[424943194,1781311841000,-500.0,0.00012963,10]
[424943221,1781311841000,-379.99,0.00013349,2]
[424943171,1781311841000,-743.52,0.00012698,2]
[424943169,1781311841000,-743.52,0.00012657,2]
[424943167,1781311841000,-743.52,0.00012613,2]
[424943168,1781311841000,-743.52,0.00012635,2]
[424943170,1781311841000,-743.52,0.00012678,2]
[424943173,1781311841000,-743.52,0.00012738,2]
[424943183,1781311841000,-743.52,0.00012846,2]
[424943184,1781311841000,-500.0,0.00012849,2]
[424943185,1781311841000,-743.52,0.00012863,2]
[424943175,1781311841000,-1222.85,0.00012757,2]
[424943172,1781311841000,-743.52,0.00012718,2]
[424943176,1781311841000,-10118.44,0.00012757,2]
[424943178,1781311841000,-743.52,0.00012775,2]
[424943180,1781311841000,-743.52,0.00012794,2]
[424943182,1781311841000,-743.52,0.00012829,2]
[424943181,1781311841000,-743.52,0.00012811,2]
[424943186,1781311841000,-743.52,0.0001288,2]
[424943188,1781311841000,-743.52,0.00012912,2]
[424943187,1781311841000,-743.52,0.00012896,2]
[424943191,1781311841000,-743.52,0.00012944,2]
[424943190,1781311841000,-743.52,0.00012928,2]
[424943193,1781311841000,-890.6339886,0.00012963,3]
[424943192,1781311841000,-743.52,0.00012959,2]
[424943189,1781311841000,-151.0,0.00012924,2]
[424943195,1781311841000,-151.0,0.00012964,2]
[424943223,1781311841000,-150.0,0.00013488,2]
[424943271,1781311841000,-760.430438,0.00013698,2]
[424943227,1781311841000,-150.0,0.00013488,2]
[424943262,1781311841000,-500.0,0.00013698,2]
[424943253,1781311841000,-1882.83,0.00013698,2]
[424943259,1781311841000,-500.0,0.00013698,2]
[424943257,1781311841000,-206.26714691,0.00013698,2]
[424943260,1781311841000,-209.2,0.00013698,2]
[424943256,1781311841000,-500.0,0.00013698,2]
[424943258,1781311841000,-500.0,0.00013698,2]
[424943263,1781311841000,-500.0,0.00013698,2]
[424943261,1781311841000,-500.0,0.00013698,2]
[424943273,1781311841000,-959.17,0.00013698,2]
[424943265,1781311841000,-500.0,0.00013698,2]
[424943266,1781311841000,-500.0,0.00013698,2]
[424943274,1781311841000,-959.17,0.00013698,2]
[424943267,1781311841000,-500.0,0.00013698,2]
[424943272,1781311841000,-760.430438,0.00013698,2]
[424943269,1781311841000,-760.430438,0.00013698,2]
[424943268,1781311841000,-457.52,0.00013698,2]
[424943270,1781311841000,-760.430438,0.00013698,2]
[424943275,1781311841000,-959.17,0.00013698,2]
[424943280,1781311841000,-500.0,0.00013698,2]
[424943276,1781311841000,-500.0,0.00013698,2]
[424943278,1781311841000,-500.0,0.00013698,2]
[424943279,1781311841000,-500.0,0.00013698,2]
[424943226,1781311841000,-150.0,0.00013488,2]
[424943277,1781311841000,-500.0,0.00013698,2]
[424943254,1781311841000,-500.0,0.00013698,2]
[424943255,1781311841000,-500.0,0.00013698,2]
[424943264,1781311841000,-500.0,0.00013698,2]
[424943250,1781311841000,-1882.83,0.00013698,2]
[424943224,1781311841000,-150.0,0.00013488,2]
[424943252,1781311841000,-1882.83,0.00013698,2]
[424943228,1781311841000,-150.0,0.00013488,2]
[424943229,1781311841000,-150.0,0.00013488,2]
[424943231,1781311841000,-500.0,0.00013698,2]
[424943233,1781311841000,-407.2479455,0.00013698,2]
[424943236,1781311841000,-177.96166489,0.00013698,2]
[424943235,1781311841000,-500.0,0.00013698,2]
[424943239,1781311841000,-500.0,0.00013698,2]
[424943234,1781311841000,-500.0,0.00013698,2]
[424943232,1781311841000,-500.0,0.00013698,2]
[424943237,1781311841000,-500.0,0.00013698,2]
[424943238,1781311841000,-500.0,0.00013698,2]
[424943225,1781311841000,-150.0,0.00013488,2]
[424943230,1781311841000,-3305.88721663,0.00013623,2]
[424943240,1781311841000,-500.0,0.00013698,2]
[424943247,1781311841000,-1882.83,0.00013698,2]
[424943249,1781311841000,-1882.83,0.00013698,2]
[424943246,1781311841000,-1882.83,0.00013698,2]
[424943251,1781311841000,-1882.83,0.00013698,2]
[424943244,1781311841000,-1882.83,0.00013698,2]
[424943248,1781311841000,-1882.83,0.00013698,2]
[424943243,1781311841000,-500.0,0.00013698,2]
[424943241,1781311841000,-500.0,0.00013698,2]
[424943242,1781311841000,-500.0,0.00013698,2]
[424943245,1781311841000,-1882.83,0.00013698,2]
[424943319,1781311842000,-151.0,0.000144,2]
[424943312,1781311842000,-500.0,0.00014399,2]
[424943314,1781311842000,-300.0,0.00014399,2]
[424943310,1781311842000,-173.49935526,0.0001439,2]
[424943320,1781311842000,-151.0,0.000144,2]
[424943318,1781311842000,-154.406565,0.000144,2]
[424943315,1781311842000,-157157.67182161,0.000144,2]
[424943311,1781311842000,-1613.0535,0.00014398,2]
[424943317,1781311842000,-151.0,0.000144,2]
[424943316,1781311842000,-151.0,0.000144,2]
[424943321,1781311842000,-151.0,0.000144,2]
[424943328,1781311842000,-10000.0,0.00014498,2]
[424943325,1781311842000,-760.430438,0.000144,2]
[424943324,1781311842000,-760.430438,0.000144,2]
[424943329,1781311842000,-151.0,0.00014568,2]
[424943322,1781311842000,-151.0,0.000144,2]
[424943326,1781311842000,-760.430438,0.000144,2]
[424943327,1781311842000,-598.209,0.00014443,2]
[424943323,1781311842000,-760.430438,0.000144,2]
[424943331,1781311842000,-151.0,0.00014647,2]
[424943333,1781311842000,-7414.99545119,0.000147,2]
[424943335,1781311842000,-417.91414,0.0001472,2]
[424943332,1781311842000,-507.07347574,0.00014668,2]
[424943308,1781311842000,-8686.0196,0.000143,2]
[424943330,1781311842000,-200.0,0.00014623,2]
[424943306,1781311842000,-2325.0,0.00014156,2]
[424943284,1781311842000,-500.0,0.00013698,2]
[424943305,1781311842000,-2430.63186634,0.00014076,2]
[424943340,1781311842000,-367.23793,0.00014748,7]
[424943286,1781311842000,-200.0,0.00013699,2]
[424943281,1781311842000,-500.0,0.00013698,2]
[424943285,1781311842000,-269.57,0.00013698,2]
[424943283,1781311842000,-500.0,0.00013698,2]
[424943282,1781311842000,-500.0,0.00013698,2]
[424943294,1781311842000,-151.0,0.00013699,2]
[424943295,1781311842000,-151.0,0.00013739,2]
[424943296,1781311842000,-151.0,0.00013746,2]
[424943297,1781311842000,-151.0,0.00013746,2]
[424943287,1781311842000,-151.0,0.00013699,2]
[424943289,1781311842000,-151.0,0.00013699,2]
[424943288,1781311842000,-151.0,0.00013699,2]
[424943293,1781311842000,-151.0,0.00013699,2]
[424943290,1781311842000,-276.320061,0.00013699,2]
[424943291,1781311842000,-151.0,0.00013699,2]
[424943292,1781311842000,-151.0,0.00013699,2]
[424943298,1781311842000,-151.0,0.00013746,2]
[424943300,1781311842000,-170.54,0.00013782,2]
[424943301,1781311842000,-1555.5,0.0001385,2]
[424943299,1781311842000,-320.985563,0.00013748,7]
[424943309,1781311842000,-168.0,0.0001436,2]
[424943304,1781311842000,-331.519573,0.00014,2]
[424943303,1781311842000,-250.0,0.00014,2]
[424943302,1781311842000,-343.236426,0.00013998,7]
[424943307,1781311842000,-3305.88721663,0.00014261,2]
[424943334,1781311842000,-417.91413,0.0001472,2]
[424943368,1781311842000,-1882.83,0.00014973,2]
[424943337,1781311842000,-18903.66,0.00014725,2]
[424943369,1781311842000,-10269.49328462,0.00014974,2]
[424943370,1781311842000,-6111.0,0.0001498,2]
[424943373,1781311842000,-300.0,0.00014989,2]
[424943367,1781311842000,-500.0,0.00014973,12]
[424943371,1781311842000,-426.0,0.00014986,2]
[424943375,1781311842000,-2000.0,0.0001499,2]
[424943372,1781311842000,-5049.83021569,0.00014989,2]
[424943374,1781311842000,-831.2865767,0.0001499,2]
[424943380,1781311842000,-500.0,0.00014999,15]
[424943377,1781311842000,-2757.72242461,0.00014999,2]
[424943379,1781311842000,-500.0,0.00014999,14]
[424943365,1781311842000,-426.0,0.00014962,2]
[424943383,1781311842000,-500.0,0.00014999,18]
[424943378,1781311842000,-500.0,0.00014999,13]
[424943382,1781311842000,-500.0,0.00014999,17]
[424943386,1781311842000,-500.0,0.00014999,21]
[424943387,1781311842000,-500.0,0.00014999,21]
[424943385,1781311842000,-500.0,0.00014999,20]
[424943384,1781311842000,-500.0,0.00014999,19]
[424943389,1781311842000,-500.0,0.00014999,21]
[424943388,1781311842000,-500.0,0.00014999,21]
[424943390,1781311842000,-500.0,0.00014999,21]
[424943392,1781311842000,-500.0,0.00014999,21]
[424943391,1781311842000,-500.0,0.00014999,21]
[424943381,1781311842000,-500.0,0.00014999,16]
[424943376,1781311842000,-250.0,0.0001499,2]
[424943338,1781311842000,-426.0,0.00014727,2]
[424943360,1781311842000,-211.55356268,0.000149,2]
[424943366,1781311842000,-18903.66,0.00014967,2]
[424943341,1781311842000,-385.51623986,0.00014759,2]
[424943339,1781311842000,-355.0,0.00014745,2]
[424943336,1781311842000,-417.91414,0.0001472,2]
[424943353,1781311842000,-218.07137837,0.00014864,2]
[424943343,1781311842000,-426.0,0.00014776,2]
[424943352,1781311842000,-197.40964075,0.00014864,2]
[424943344,1781311842000,-5000.0,0.0001479,2]
[424943347,1781311842000,-959.17,0.00014835,2]
[424943346,1781311842000,-497.0,0.00014819,2]
[424943349,1781311842000,-611.0,0.00014839,2]
[424943351,1781311842000,-611.0,0.0001485,2]
[424943342,1781311842000,-426.0,0.0001477,2]
[424943345,1781311842000,-204.0,0.00014819,2]
[424943350,1781311842000,-426.0,0.00014847,2]
[424943362,1781311842000,-1672.7364795,0.00014946,2]
[424943363,1781311842000,-350.0,0.00014959,2]
[424943358,1781311842000,-3305.88721663,0.000149,2]
[424943361,1781311842000,-426.0,0.00014922,2]
[424943359,1781311842000,-2430.63186634,0.000149,2]
[424943356,1781311842000,-417.91414,0.00014864,2]
[424943357,1781311842000,-611.0,0.00014886,2]
[424943364,1781311842000,-426.0,0.00014961,2]
[424943354,1781311842000,-417.91413,0.00014864,2]
[424943348,1781311842000,-426.0,0.00014836,2]
[424943355,1781311842000,-417.91414,0.00014864,2]
[424943411,1781311843000,-1882.83,0.00014999,2]
[424943413,1781311843000,-1882.83,0.00014999,2]
[424943423,1781311843000,-1882.94504274,0.00014999,2]
[424943412,1781311843000,-1882.83,0.00014999,2]
[424943414,1781311843000,-1882.83,0.00014999,2]
[424943418,1781311843000,-1882.83,0.00014999,2]
[424943417,1781311843000,-1882.83,0.00014999,2]
[424943421,1781311843000,-1882.83,0.00014999,2]
[424943416,1781311843000,-1882.83,0.00014999,2]
[424943415,1781311843000,-1882.83,0.00014999,2]
[424943409,1781311843000,-500.0,0.00014999,21]
[424943419,1781311843000,-1882.83,0.00014999,2]
[424943406,1781311843000,-500.0,0.00014999,21]
[424943393,1781311843000,-500.0,0.00014999,21]
[424943410,1781311843000,-431.64286952,0.00014999,21]
[424943408,1781311843000,-500.0,0.00014999,21]
[424943407,1781311843000,-500.0,0.00014999,21]
[424943404,1781311843000,-500.0,0.00014999,21]
[424943405,1781311843000,-500.0,0.00014999,21]
[424943403,1781311843000,-500.0,0.00014999,21]
[424943401,1781311843000,-500.0,0.00014999,21]
[424943397,1781311843000,-500.0,0.00014999,21]
[424943396,1781311843000,-500.0,0.00014999,21]
[424943394,1781311843000,-500.0,0.00014999,21]
[424943395,1781311843000,-500.0,0.00014999,21]
[424943420,1781311843000,-1882.83,0.00014999,2]
[424943399,1781311843000,-500.0,0.00014999,21]
[424943400,1781311843000,-500.0,0.00014999,21]
[424943402,1781311843000,-500.0,0.00014999,21]
[424943422,1781311843000,-1882.83,0.00014999,2]
[424943432,1781311843000,-500.0,0.00014999,2]
[424943428,1781311843000,-959.17,0.00014999,2]
[424943455,1781311843000,-150.0,0.00011219,2]
[424943456,1781311843000,-265.97015792,0.00015,2]
[424943452,1781311843000,-300.0,0.00014999,2]
[424943450,1781311843000,-959.17,0.00014999,2]
[424943453,1781311843000,-307.59763668,0.00014999,2]
[424943451,1781311843000,-959.22487008,0.00014999,2]
[424943454,1781311843000,-634852.43164673,0.00015,2]
[424943447,1781311843000,-959.17,0.00014999,2]
[424943448,1781311843000,-959.17,0.00014999,2]
[424943446,1781311843000,-959.17,0.00014999,2]
[424943426,1781311843000,-959.17,0.00014999,2]
[424943442,1781311843000,-959.17,0.00014999,2]
[424943441,1781311843000,-959.17,0.00014999,2]
[424943443,1781311843000,-959.17,0.00014999,2]
[424943445,1781311843000,-959.17,0.00014999,2]
[424943444,1781311843000,-959.17,0.00014999,2]
[424943427,1781311843000,-959.17,0.00014999,2]
[424943425,1781311843000,-959.17,0.00014999,2]
[424943429,1781311843000,-500.0,0.00014999,2]
[424943440,1781311843000,-500.0,0.00014999,2]
[424943431,1781311843000,-959.17,0.00014999,2]
[424943434,1781311843000,-500.0,0.00014999,2]
[424943430,1781311843000,-500.0,0.00014999,2]
[424943435,1781311843000,-959.17,0.00014999,2]
[424943433,1781311843000,-959.17,0.00014999,2]
[424943438,1781311843000,-500.0,0.00014999,2]
[424943437,1781311843000,-959.17,0.00014999,2]
[424943439,1781311843000,-959.17,0.00014999,2]
[424943436,1781311843000,-500.0,0.00014999,2]
[424943449,1781311843000,-959.17,0.00014999,2]
[424943457,1781311844000,-0.096652,0.00015,2]
[424943466,1781311845000,-151.0,0.00014999,2]
[424943470,1781311845000,-6313.39999983,0.00015,2]
[424943468,1781311845000,-10292.43245139,0.00015,2]
[424943469,1781311845000,-735.752535,0.00015,2]
[424943467,1781311845000,-2065.98487953,0.00015,2]
[424943475,1781311899000,-500.0,7.575e-05,2]
[424943476,1781311952000,-500.0,7.575e-05,2]
[424943477,1781312005000,-1948.131241,7.575e-05,2]
[424943478,1781312028000,-1948.131241,7.575e-05,2]
[424943479,1781312052000,-1023.31921623,7.575e-05,2]
[424943481,1781312104000,-150.0,7.574e-05,2]
[424943482,1781312157000,-500.0,7.574e-05,2]
[424943483,1781312211000,-443.97641017,7.574e-05,2]
[424943484,1781312264000,-500.0,7.574e-05,2]
[424943486,1781312317000,-306.71763003,7.574e-05,2]
[424943489,1781312532000,-351.73479821,7.562e-05,2]
[424943491,1781312553000,-500.0,7.562e-05,2]
[424943492,1781312553000,-500.0,7.562e-05,2]
[424943493,1781312553000,-150.0,7.568e-05,2]
[424943495,1781312553000,-256.53220928,7.573e-05,2]
[424943496,1781312553000,-500.0,7.573e-05,2]
[424943494,1781312553000,-150.0,7.573e-05,2]
[424943497,1781312553000,-160.0,7.593e-05,2]
[424943499,1781312553000,-150.0,7.719e-05,2]
[424943500,1781312553000,-150.0,7.795e-05,2]
[424943498,1781312553000,-150.0,7.644e-05,2]
[424943501,1781312553000,-200.0,7.904e-05,2]
[424943502,1781312586000,-1076.04,8.332e-05,2]
[424943503,1781312608000,-1522.69,8.332e-05,2]
[424943504,1781312632000,-1030.78838038,7.592e-05,2]
[424943505,1781312632000,-1030.78838038,7.592e-05,2]
[424943509,1781312632000,-1030.78838038,7.592e-05,2]
[424943508,1781312632000,-1030.78838038,7.592e-05,2]
[424943506,1781312632000,-1030.78838038,7.592e-05,2]
[424943512,1781312632000,-1030.78838038,7.592e-05,2]
[424943510,1781312632000,-1030.78838038,7.592e-05,2]
[424943514,1781312632000,-722.90457658,7.592e-05,2]
[424943507,1781312632000,-1030.78838038,7.592e-05,2]
[424943511,1781312632000,-1030.78838038,7.592e-05,2]
[424943513,1781312632000,-1030.78838038,7.592e-05,2]
[424943517,1781312634000,-1030.78838038,7.592e-05,2]
[424943516,1781312634000,-1030.78838038,7.592e-05,2]
[424943518,1781312634000,-1030.78838038,7.592e-05,2]
[424943519,1781312634000,-1030.78838038,7.592e-05,2]
[424943515,1781312634000,-307.8838038,7.592e-05,2]
[424943520,1781312634000,-1030.78838038,7.592e-05,2]
[424943522,1781312634000,-1030.78838038,7.592e-05,2]
[424943523,1781312634000,-1030.78838038,7.592e-05,2]
[424943525,1781312634000,-415.02077278,7.592e-05,2]
[424943524,1781312634000,-1030.78838038,7.592e-05,2]
[424943521,1781312634000,-1030.78838038,7.592e-05,2]
[424943526,1781312635000,-615.7676076,7.592e-05,2]
[424943528,1781312635000,-1030.78838038,7.592e-05,2]
[424943527,1781312635000,-1030.78838038,7.592e-05,2]
[424943529,1781312635000,-1030.78838038,7.592e-05,2]
[424943530,1781312635000,-1030.78838038,7.592e-05,2]
[424943532,1781312635000,-1030.78838038,7.592e-05,2]
[424943531,1781312635000,-1030.78838038,7.592e-05,2]
[424943534,1781312635000,-1030.78838038,7.592e-05,2]
[424943536,1781312635000,-107.13696898,7.592e-05,2]
[424943533,1781312635000,-1030.78838038,7.592e-05,2]
[424943535,1781312635000,-1030.78838038,7.592e-05,2]
[424943541,1781312636000,-1030.78838038,7.592e-05,2]
[424943537,1781312636000,-923.6514114,7.592e-05,2]
[424943538,1781312636000,-1030.78838038,7.592e-05,2]
[424943539,1781312636000,-1030.78838038,7.592e-05,2]